Cogmind - Beta 17.1 @@@ ROGUE MODE // 2026.09.21 @ 23:21:03 Player: deadbabe Result: Destroyed by L-31 Rogue with Katana Performance ------------- Evolutions (2) 1000 Regions Visited (3) 600 Robots Destroyed (33) 165 Value Destroyed (898) 898 Prototype IDs (0) 0 Alien Tech Used (0) 0 Bonus (0) 0 TOTAL SCORE: 2663 Bonus ------- None Cogmind --------- Core Integrity 0/550 Matter 6/300 Energy 98/100 System Corruption 0% Temperature Cool (0) Movement Treading (155) Location -8/Materials Parts ------- > --- POWER (1) -------- (None) > --- PROPULSION (4) --- Light Treads Light Treads Advanced Treads > --- UTILITY (2) ------ (None) > --- WEAPON (4) ------- Gauss Cannon Gauss Cannon Improved Grenade Launcher > --- INVENTORY (5) ---- Light Deuterium Engine Small Storage Unit High-capacity Matter Pod (0) Advanced Targeting Computer Tractor Beam Peak State ------------ > --- POWER ------------ (None) > --- PROPULSION ------- Light Treads Light Treads Advanced Treads > --- UTILITY ---------- (None) > --- WEAPON ----------- Gauss Cannon Gauss Cannon Improved Grenade Launcher > --- INVENTORY -------- Light Deuterium Engine Small Storage Unit High-capacity Matter Pod Advanced Targeting Computer Tractor Beam [Rating: 16] Favorites ----------- Power Ion Engine Engine Ion Engine Propulsion Wheel Treads Light Treads Leg Aluminum Leg Wheel Wheel Utility Seismic Detector Device Seismic Detector Storage Large Storage Unit Weapon Light Assault Rifle Energy Gun Small Laser Ballistic Gun Light Assault Rifle Ballistic Cannon Gauss Cannon Launcher Grenade Launcher Impact Weapon Heavy Flail Build | -11 -10 -9 -8 ------- Run | Yrd Mat Mat Mat Slots Evolved 4 | . . 2 2 Power . | . . . . Propulsion 2 | . . 2 . Utility . | . . . . Weapon 2 | . . . 2 Parts Attached 28 | 6 2 11 9 Power 2 | 1 . 1 . Engine 2 | 1 . 1 . Core . | . . . . Reactor . | . . . . Propulsion 11 | 2 . 6 3 Treads 3 | . . . 3 Leg 2 | . . 2 . Wheel 6 | 2 . 4 . Hover . | . . . . Flight . | . . . . Utility 4 | 1 1 1 1 Device 2 | . 1 . 1 Storage 2 | 1 . 1 . Processor . | . . . . Hackware . | . . . . Protection . | . . . . Artifact . | . . . . Weapon 11 | 2 1 3 5 Energy Gun 2 | 1 . . 1 Energy Cannon . | . . . . Ballistic Gun 3 | 1 1 1 . Ballistic Cannon 2 | . . . 2 Launcher 3 | . . 2 1 Special Weapon . | . . . . Impact Weapon 1 | . . . 1 Slashing Weapon . | . . . . Piercing Weapon . | . . . . Special Melee Weapon . | . . . . Unidentified Prototypes . | . . . . Parts Lost 17 | . . 5 12 Power 1 | . . 1 . Propulsion 8 | . . 4 4 Utility 1 | . . . 1 Weapon 7 | . . . 7 Highest Loss Streak 11 | . . 3 11 To Critical Strikes 1 | . . . 1 Average Backups 5 | 2 4 6 6 Power 1 | . 1 1 1 Propulsion . | 1 2 . . Utility 2 | . 1 2 3 Weapon 1 | . . 2 1 Tool/Special . | . . . . Unused Backups 6 | 2 . . 4 Power 2 | . . . 2 Propulsion 2 | 2 . . . Utility 2 | . . . 2 Weapon . | . . . . Tool/Special . | . . . . Average Slot Usage (%) 70 | . 97 79 53 Engine 3 | . 14 3 . Treads 2 | . . . 6 Leg 6 | . . 7 8 Wheel 17 | . 28 24 7 Device 8 | . 11 11 4 Storage 9 | . 14 11 5 Energy Gun 1 | . 9 . 1 Ballistic Gun 15 | . 18 20 8 Ballistic Cannon 1 | . . . 3 Launcher 2 | . . 1 5 Impact Weapon 1 | . . . 2 Peak Build Rating 16 | 6 7 11 16 Average Rating 8 | 5 6 8 9 On Entrance 5 | . 6 7 9 Avg Prop Armor Cover (%) 16 | . . 16 16 Naked Turns . | . . . . Heaviest Build 29 | 12 13 28 29 Greatest Support 62 | 20 20 46 62 Greatest Overweight (x) 8 | . . 8 7 Average Overweight (x) . | . . 1 . Largest Inventory Capacity 15 | 8 8 15 15 Average Capacity 12 | 7 8 14 11 Most Carried 8 | 4 5 8 8 Average Carried 5 | 2 4 6 6 Final Capacity 15 | 8 8 15 5 Final Carried 8 | 4 5 8 5 Class Distribution -------------------- 61% | Mutant 28% | Scavenger-Mutant 7% | Gunner Dominant Class ---------------- Mutant | -10/Materials Mutant | -9/Materials Mutant | -8/Materials Resources | -11 -10 -9 -8 ----------- Run | Yrd Mat Mat Mat Matter Collected 589 | 136 . 327 126 Remotely . | . . . . Salvage Created 894 | 115 . 582 197 Parts 50 | 6 . 33 11 Haulers Intercepted . | . . . . Recyclers Shooed 1 | . . 1 . Parts Field Recycled . | . . . . Retrieved Matter . | . . . . Parts Self-Destructed . | . . . . Prevented . | . . . . Parts Restored . | . . . . Kills | -11 -10 -9 -8 ------- Run | Yrd Mat Mat Mat Combat Hostiles Destroyed 23 | . . 15 8 Guns 10 | . . 9 1 AOE 13 | . . 6 7 Classes Destroyed 9 | 2 . 5 2 Worker 3 | . . 3 . Builder 1 | . . . 1 Tunneler 1 | 1 . . . Recycler 3 | 1 . 1 1 Mechanic 2 | . . 2 . Swarmer 4 | . . 4 . Grunt 14 | . . 9 5 Sentry 3 | . . 2 1 Hunter 2 | . . . 2 Best Kill Streak 9 | 2 . 9 4 Combat Bots Only 7 | . . 7 3 Max Kills in Single Turn 2 | 1 . 2 2 Gunslinging . | . . . . Exploded 2 | . . 1 2 Melee . | . . . . Uniques/NPCs Destroyed . | . . . . Combat | -11 -10 -9 -8 -------- Run | Yrd Mat Mat Mat Hostile Shots Fired 162 | . 1 79 82 Missed 58 | . 1 25 32 Hits 104 | . . 54 50 Melee 1 | . . . 1 Projectile 103 | . . 54 49 Critical Strikes 7 | . . 1 6 Damage Taken 2018 | . . 725 1293 Core 815 | . . 247 568 Absorbed by Shields . | . . . . Core Remaining (%) 79 | 100 100 38 . Volleys Fired 74 | 8 . 52 14 Largest 4 | 2 . 2 4 Hottest 100 | 60 . 50 100 Shots Fired 133 | 16 . 87 30 Gun 108 | 16 . 77 15 Cannon . | . . . . Launcher 25 | . . 10 15 Special . | . . . . Kinetic 92 | 8 . 77 7 Thermal 16 | 8 . . 8 Explosive 25 | . . 10 15 Electromagnetic . | . . . . Robot Hit Streak 13 | 9 . 13 3 Robot Miss Streak 3 | 3 . 3 2 Penetration Max . | . . . . Secondary Targets 1 | . . 1 . Max Gunslinging Chain 1 | . . 1 . Shots Hit Robots 91 | 11 . 67 13 Core Hits 78 | 4 . 49 25 Critical Kills . | . . . . Critical Parts Destroyed 1 | . . 1 . Critical Strikes 1 | . . 1 . Destroy 1 | . . 1 . Melee Attacks . | . . . . Impact . | . . . . Slashing . | . . . . Piercing . | . . . . Sneak Attacks . | . . . . Combat Hostiles . | . . . . Follow-up Attacks . | . . . . Damage Inflicted 2020 | 115 . 954 951 Guns 758 | 115 . 527 116 Cannons . | . . . . Explosions 1253 | . . 427 826 Melee . | . . . . Ramming 9 | . . . 9 Kinetic 595 | 36 . 527 32 Thermal 163 | 79 . . 84 Explosive 1253 | . . 427 826 Electromagnetic . | . . . . Impact . | . . . . Slashing . | . . . . Piercing . | . . . . Highest Corruption . | . . . . Average Corruption . | . . . . Corruption Purged . | . . . . Corruption Blocked . | . . . . Overload Shots . | . . . . Overflow Damage 60 | . . 13 47 Projectiles . | . . . . Explosions 60 | . . 13 47 Melee . | . . . . Knockbacks . | . . . . Impact . | . . . . Kinetic . | . . . . Secondary . | . . . . Self-Inflicted Damage 85 | . . 50 35 Shots 4 | . . 3 1 Rammed 2 | . . . 2 Targets Rammed 3 | . . . 3 Kicked 1 | . . . 1 Crushed . | . . . . Highest Temperature 40 | 40 . 20 22 Average Temperature 12 | 20 . 8 9 Received Heat Transfer 462 | . . 309 153 Siege Activations . | . . . . Martial Activations . | . . . . Shielding Activations . | . . . . Robots Disrupted . | . . . . Combat Hostiles . | . . . . Robots Corrupted . | . . . . Combat Hostiles . | . . . . Parts Fried . | . . . . Impact Corruptions . | . . . . Robots Melted . | . . . . Combat Hostiles . | . . . . Parts Melted . | . . . . Heat Transferred 361 | 175 . . 186 Parts Sabotaged . | . . . . Parts Stolen . | . . . . Parts Stripped . | . . . . Power Chain Reactions . | . . . . Alert | -11 -10 -9 -8 ------- Run | Yrd Mat Mat Mat Maximum Alert Level 1 | . . 1 . Low Security (%) 90 | 100 100 79 100 Level 1 9 | . . 20 . Level 2 . | . . . . Level 3 . | . . . . Level 4 . | . . . . Level 5 . | . . . . High Security . | . . . . Max Security . | . . . . Peak Influence 225 | 5 . 225 175 Initial 91 | . . . 91 Average 88 | . . 121 89 Influence Increases 747 | 10 . 458 279 Destroy 0b10 Robot/C 460 | . . 300 160 Destroy 0b10 Robot/NC 50 | 10 . 30 10 Destroy Leader 100 | . . 60 40 Destroy Structure 107 | . . 53 54 Partial Spotted 15 | . . 15 . Lose Combat Pursuer 15 | . . . 15 Influence Decreases 684 | 10 . 242 432 Entered New Map 125 | . . . 125 Time Decay 389 | 10 . 192 187 Lost Part 170 | . . 50 120 Squads Dispatched 4 | . 1 2 1 Investigation 1 | . . 1 . Extermination . | . . . . Reinforcement 3 | . 1 1 1 Assault . | . . . . Garrison . | . . . . Intercept . | . . . . Searches Triggered . | . . . . Construction Impeded . | . . . . Haulers Reinforced . | . . . . Active Scanning Responses . | . . . . Cargo Convoy Interrupts . | . . . . Stealth | -11 -10 -9 -8 --------- Run | Yrd Mat Mat Mat Distress Signals 3 | . . 3 . Communications Jammed . | . . . . Distress Signals . | . . . . Times Spotted 39 | . 4 20 15 Peak Tracking Total 5 | . 4 5 5 Tactical Retreats 1 | . . . 1 Traps | -11 -10 -9 -8 ------- Run | Yrd Mat Mat Mat Traps Triggered 2 | . . 2 . Indirectly . | . . . . Trap Hack Attempts . | . . . . Triggered . | . . . . Disarmed . | . . . . Reprogrammed . | . . . . Reused . | . . . . Traps Extracted . | . . . . Installed . | . . . . Triggered . | . . . . Machines | -11 -10 -9 -8 ---------- Run | Yrd Mat Mat Mat Machines Disabled . | . . . . Max in Single Turn . | . . . . Machines Repaired . | . . . . Machines Dismantled . | . . . . Machines Sabotaged . | . . . . Overloaded Fab Kills . | . . . . Hacking | -11 -10 -9 -8 --------- Run | Yrd Mat Mat Mat Machines Accessed 1 | . . 1 . Terminals . | . . . . Fabricators . | . . . . Repair Stations . | . . . . Recycling Units . | . . . . Scanalyzers 1 | . . 1 . Garrison Access . | . . . . Total Hacks 3 | . . 3 . Successful 2 | . . 2 . Failed . | . . . . Catastrophic . | . . . . Database Lockouts 1 | . . 1 . Manual . | . . . . Terminals . | . . . . Fabricators . | . . . . Repair Stations . | . . . . Recycling Units . | . . . . Scanalyzers 3 | . . 3 . Garrison Access . | . . . . Terminal Hacks . | . . . . Fabricator Hacks . | . . . . Repair Station Hacks . | . . . . Recycling Unit Hacks . | . . . . Scanalyzer 2 | . . 2 . Insert Component 1 | . . 1 . Retrieve Study 1 | . . 1 . Garrison Access Hacks . | . . . . Unauthorized Hacks . | . . . . Terminals . | . . . . Fabricators . | . . . . Repair Stations . | . . . . Recycling Units . | . . . . Scanalyzers . | . . . . Garrison Access . | . . . . Data Cores Recovered . | . . . . Used . | . . . . Hacking Detections . | . . . . Full Trace Events . | . . . . Feedback Events . | . . . . Feedback Blocked . | . . . . Robot Schematics Acquired . | . . . . Robots Built . | . . . . Authchips . | . . . . Time . | . . . . Total Robot Build Rating . | . . . . Part Schematics Acquired . | . . . . Parts Built . | . . . . Authchips . | . . . . Time . | . . . . Total Part Build Rating . | . . . . Part Studies Acquired 1 | . . 1 . Parts Repaired . | . . . . Time . | . . . . Parts Recycled . | . . . . Recycled Matter . | . . . . Retrieved Matter . | . . . . Retrieved Components . | . . . . Parts Scanalyzed . | . . . . Part Schematics Acquired . | . . . . Parts Damaged . | . . . . Bothacking | -11 -10 -9 -8 ------------ Run | Yrd Mat Mat Mat Used RIF Installer . | . . . . Robots Hacked . | . . . . Non-combat . | . . . . Combat . | . . . . Robot Hacks Applied . | . . . . Relay Couplers Released . | . . . . Fabnet Peak Effective % . | . . . . Robots Rewired . | . . . . Allies Hacked . | . . . . Hacks Repelled . | . . . . Allies | -11 -10 -9 -8 -------- Run | Yrd Mat Mat Mat Total Allies . | . . . . Largest Group . | . . . . Highest-Rated Group . | . . . . Highest-Rated Ally . | . . . . Total Orders . | . . . . Ally Attacks . | . . . . Total Damage . | . . . . Kills . | . . . . Allies Corrupted . | . . . . Allies Melted . | . . . . Intel | -11 -10 -9 -8 ------- Run | Yrd Mat Mat Mat Active Infowar (turns) 712 | . 74 460 178 Seismic 712 | . 74 460 178 Robot Analysis Total . | . . . . Derelict Logs Recovered . | . . . . Drone Launches . | . . . . Drone Recoveries . | . . . . Exploration | -11 -10 -9 -8 ------------- Run | Yrd Mat Mat Mat Turns Passed 1043 | 93 88 460 402 Spaces Moved 736 | 70 105 282 279 Core 103 | 4 . 16 83 Treads 51 | . . . 51 Legs 6 | . . 1 5 Wheels 576 | 66 105 265 140 Hover . | . . . . Flight . | . . . . Fastest Speed 50 | 50 80 80 50 Average Speed 105 | 78 80 109 117 Slowest Speed 450 | 80 80 450 400 Overloaded Moves . | . . . . Propulsion Burnouts . | . . . . Robots Hopped . | . . . . Potential Cave-ins . | . . . . Cave-ins Triggered . | . . . . Exploration Rate (%) 21 | 4 27 25 31 Regions Visited 3 Branch Regions . Pre-discovered Areas . | . . . . Known Exits Taken . | . . . . Unknown Exits Taken 3 | 1 1 1 . Scrap Searched . | . . . . Spaces Dug . | . . . . Terrain Destroyed 128 | . . 61 67 Melee . | . . . . Projectile . | . . . . AOE 128 | . . 61 67 Terrain Rammed . | . . . . Walls Destroyed . | . . . . Machines Disabled . | . . . . Actions | -11 -10 -9 -8 --------- Run | Yrd Mat Mat Mat Total 872 | 91 108 354 319 Wait . | . . . . Move 733 | 69 104 281 279 Hop . | . . . . Pick Up 12 | 6 2 3 1 Fast Attach 21 | 6 . 6 9 Attach 10 | . 1 3 6 Detach 4 | . . 1 3 Swap 10 | . 1 6 3 Drop 5 | 2 . 2 1 Fire 74 | 8 . 52 14 Melee . | . . . . Ram 2 | . . . 2 Kick 1 | . . . 1 Crush . | . . . . Escape Stasis . | . . . . Rewire . | . . . . Trap . | . . . . Miscellaneous . | . . . . Route ------- -11/Scrapyard -10/Materials -9/Materials -8/Materials History --------- Turn | Location | Event 5 | -11/Scrapyard | Discovered new exit (range 15) 94 | -11/Scrapyard | Entered Materials 173 | -10/Materials | Discovered new exit (range 12) 182 | -10/Materials | Entered another Materials area 182 | -9/Materials | Evolved 2 slots: Propulsion x2 224 | -9/Materials | Central database locked down 306 | -9/Materials | Build established: Mutant 361 | -9/Materials | Destroyed 7 combat bots 362 | -9/Materials | Lost 3 parts (1p2n) 390 | -9/Materials | Core integrity fell below 50% 597 | -9/Materials | Discovered new exit (range 6) 642 | -9/Materials | Entered another Materials area 642 | -8/Materials | Evolved 2 slots: Weapon x2 863 | -8/Materials | Core integrity fell below 50% 893 | -8/Materials | Lost 11 parts (4n1u6w) 919 | -8/Materials | Core integrity fell below 20% 1044 | -8/Materials | Destroyed by L-31 Rogue with Katana Last Messages --------------- 00918_ Y-45 Defender destroyed. 00932_ Acquired Lgt. Treads. 00933_ The unstable cave ceiling collapses. 00936_ Acquired Lgt. Treads. 00937_ T-07 Excavator destroyed. 00940_ Acquired 9 matter. 00943_ G-47 Trooper destroyed. 00945_ U-05 Engineer builds a Wall. 00946_ Destroyed Lgt. Nuclear Core. 00946_ G-47 Trooper destroyed. 00948_ Sml. Laser destroyed. 00949_ G-47 Trooper destroyed. 00950_ U-05 Engineer lays Concrete. 00951_ The unstable cave ceiling collapses. 00959_ Acquired Adv. Treads. 00972_ Acquired Gauss Cannon. 01010_ K-01 Serf collects debris. 01021_ C-30 ARC bursts open, deploying its payload. 01021_ L-31 Rogue unfolds itself. 01021_ G-47 Trooper unfolds itself. Map ----- +----------------------------------------------------+ | ??????????????????????????????????????????? | | ??????????????????????????????????????????? | | ??????????????????????????????????????????? | | ??????????????????????????????????????????? | | ??????????????????????????????????????????? | | ??????????????????????????????????????????? | | ??????????????????????????????????????????? | | ??????????????????????????????????????????? | | ??????????????????????????????????????????? | | ??????????????????????????????????????????? | | ???????????????? ???????????????????????? | | ???????????????# ???????????????????????? | | ???????????????# ???????????????????????? | | ???????????????# ???????????????????????? | | ???????????????# ???????????????????????? | | ???????????????# ???????????????????????? | | ???????????????# ???????????????????????? | | ???????????????# #??????????????????????? | | ??????? ???# #??????????????????????? | | ??????? ???# #????##????????????????? | | ??????? ???# #???# ###??????????????? | | ??????? ???# #?? #??????????????? | | ???????# #???# #?? "" #??????????????? | | ???????# #???# #?[ T" #??????????????? | | ???????# #???# ## "" #??????????????? | | ???????# #???# @ + #??????????????? | | ???????# #???# gl## """ #??????????????? | | ???????# #???# #? """ #??????????????? | | ???????# #???# #??""" #??????????????? | | ???????# #???#k g#?? #??????????????? | | ??##???# #???# #???"" ???????????????? | | ? ??# #???# #???"" #??????????????? | | # """??# #???# #????" #??????????????? | | # """ ?# #???# Yk#??????????????????????? | | # """ ?# #???# #?###+###??????????????? | | # # ##### ### #??????????????? | | # """ # #??????????????? | | # """ + +??????????????? | | # """ # #??????????????? | | # # ######## " #??????????????? | | # """ ?# ####### #%" ##??????????????? | | # """ ?#[[] !!##!! #" #???????????????? | | # """??#[[] !!##!! * #???????????????? | | ? ??######### #???????????????? | | ?##########????# ! % ##??????????????? | | ?# #????# ## #????????????? | | ?# """ #????# #####????????? | | ?# "R #????### ! #????????? | | ?# """ #??????##### #????????? | | ?# ######????? #????????? | +----------------------------------------------------+ Best States ------------- Heat Dissipation 31 Energy Generation 14 Energy Capacity 250 Matter Stores 186 Matter Capacity 300 Sight Range 16 Terrain Scan Density 10 Evasion (%) 50 Recoil Reduction 3 Item Schematics ----------------- None Robot Schematics ------------------ None Fabricated ------------ Nothing Repaired ---------- Nothing Studied --------- Lgt. Assault Rifle | -9/Materials | Hacked Alien Tech Used ----------------- None Achievements -------------- None Challenges ------------ None Game ------ Seed DecoderForceHumpback Manual? 0 Play Time 00:14:07 Cumulative 201.6 hours Start 2026.09.21 @ 23:10:51 End 2026.09.21 @ 23:21:03 Sessions 1 Manual Loads 0 Difficulty Rogue Special Mode None Game No. 21 Rogue 5 Adventurer 2 Explorer 14 Win Type - Total 7 Types 4/0/1/0/0/0/0/0/0/2 Lore% 47 Gallery% 47 Achievement% 49 Wizard Run 0 Options --------- Layout 0 ASCII 0 Keyboard 0 Movement Mouse Keybinds 0 Fullscreen 1 Font 18/Cog Map View 76x50 Zoom Use 0% Tactical HUD 1 Map Filters NONE Filters NONE Steam 1 RUN: d87e4c05-7577-4de4-a5c9-7a4c326823f6